bitfinex/quotes_BTCUSD_20250109
["timestamp","ask_amount","ask_price","bid_price","bid_amount"]
[1736432671467,0.216134,92535.0,92534.0,0.0891]
[1736432671679,0.216143,92532.0,92529.0,0.0891]
[1736432671888,0.216143,92532.0,92524.0,0.08215004]
[1736432671889,0.432301,92528.0,92524.0,0.08215004]
[1736432672113,0.432301,92528.0,92524.0,0.07315002]
[1736432672114,0.15,92525.0,92524.0,0.07315002]
[1736432672334,0.25429976,92525.0,92524.0,0.07315002]
[1736432672581,0.15,92525.0,92524.0,0.07315002]
[1736432673383,0.153,92525.0,92524.0,0.07315002]
[1736432673627,0.16115813,92525.0,92524.0,0.07315002]
[1736432673844,0.16115813,92525.0,92524.0,0.16225002]
[1736432673845,0.00815813,92525.0,92524.0,0.16225002]
[1736432674051,0.00815813,92525.0,92524.0,0.16425002]
[1736432674310,0.15,92545.0,92526.0,0.0891]
[1736432674566,0.216136,92534.0,92530.0,0.0891]
[1736432674806,0.216136,92534.0,92526.0,0.08]
[1736432674807,0.216125,92539.0,92535.0,0.0891]
[1736432675055,0.10429976,92557.0,92540.0,0.0891]
[1736432675332,0.15,92543.0,92540.0,0.0891]
[1736432675582,0.15,92541.0,92540.0,0.0891]
[1736432676358,0.15,92539.0,92538.0,0.0891]
[1736432676624,0.15,92539.0,92526.0,0.08]
[1736432676625,0.15,92537.0,92526.0,0.081]
[1736432676878,0.165,92538.0,92526.0,0.1691]
[1736432677145,0.15,92526.0,92524.0,0.07315002]
[1736432677395,0.366157,92525.0,92524.0,0.07315002]
[1736432679538,0.15,92526.0,92524.0,0.07615002]
[1736432679955,0.216157,92525.0,92524.0,0.07315002]
[1736432680165,0.216157,92525.0,92524.0,0.07615002]
[1736432680600,0.216157,92525.0,92524.0,0.07315002]
[1736432680783,0.216157,92525.0,92524.0,0.07615002]
[1736432681006,0.32045676,92525.0,92524.0,0.07615002]
[1736432681220,0.33802089,92525.0,92524.0,0.07615002]
[1736432681443,0.33802089,92525.0,92524.0,0.07315002]
[1736432681685,0.48802089,92525.0,92524.0,0.07315002]
[1736432682002,0.48802089,92525.0,92524.0,0.04829002]
[1736432682447,0.48802089,92525.0,92524.0,0.03929]
[1736432682903,0.48902089,92525.0,92524.0,0.03929]
[1736432683120,0.48802089,92525.0,92524.0,0.03929]
[1736432683327,0.48802089,92525.0,92524.0,0.04029]
[1736432683536,0.49102089,92525.0,92524.0,0.03929]
[1736432684147,0.59532065,92525.0,92524.0,0.007]
[1736432684648,0.49102089,92525.0,92524.0,0.007]
[1736432684903,0.47345676,92525.0,92524.0,0.007]
[1736432686157,0.47345676,92525.0,92494.0,0.0455]
[1736432686158,0.15,92505.0,92494.0,0.0455]
[1736432686367,0.366227,92495.0,92494.0,0.04565022]
[1736432686798,0.15,92495.0,92494.0,0.13475022]
[1736432687646,0.216193,92510.0,92503.0,0.0891]
[1736432687861,0.09704253,92513.0,92512.0,0.0891]
[1736432688307,0.1054936,92513.0,92512.0,0.0891]
[1736432688796,0.00845107,92513.0,92512.0,0.0891]
[1736432689077,0.09704253,92526.0,92525.0,0.0891]
[1736432689638,0.16449252,92526.0,92525.0,0.0891]
[1736432689890,0.07587766,92526.0,92525.0,0.0891]
[1736432690107,0.00842767,92526.0,92513.0,0.1204]
[1736432690327,0.366176,92517.0,92516.0,0.0891]
[1736432691462,0.15,92517.0,92516.0,0.0961]
[1736432691934,0.15,92517.0,92516.0,0.0891]
[1736432692153,0.216151,92528.0,92525.0,0.0891]
[1736432692362,0.432302,92528.0,92525.0,0.0891]
[1736432692575,0.366155,92526.0,92525.0,0.0891]
[1736432693447,0.15,92526.0,92525.0,0.0891]
[1736432694314,0.15,92526.0,92525.0,0.0951]
[1736432694739,0.15,92526.0,92525.0,0.0891]
[1736432694943,0.15,92526.0,92525.0,0.0941]
[1736432695260,0.366157,92525.0,92517.0,0.095]
[1736432695436,0.15,92530.0,92525.0,0.001]
[1736432695648,0.366155,92526.0,92525.0,0.001]
[1736432695995,0.9335711,92526.0,92525.0,0.001]
[1736432696404,0.216181,92515.0,92514.0,0.0891]
[1736432696895,0.216181,92515.0,92508.0,0.0701502]
[1736432696896,0.14986992,92514.0,92508.0,0.0701502]
[1736432697055,0.216199,92507.0,92506.0,0.0891]
[1736432698364,0.22458251,92507.0,92506.0,0.0941]
[1736432698779,0.37458251,92507.0,92506.0,0.005]
[1736432698980,0.37458251,92507.0,92506.0,0.0941]
[1736432699186,0.08607523,92507.0,92506.0,0.0941]
[1736432699388,0.08607523,92507.0,92506.0,0.0901]
[1736432699803,0.216196,92509.0,92506.0,0.0901]
[1736432700014,0.216199,92507.0,92506.0,0.0901]
[1736432700618,0.216199,92507.0,92506.0,0.0971]
[1736432701854,0.216199,92507.0,92506.0,0.08809998]
[1736432702269,0.216199,92507.0,92506.0,0.08709998]
[1736432702671,0.216199,92507.0,92506.0,0.08809998]
[1736432702891,0.44708923,92507.0,92506.0,0.008]
[1736432703108,0.95077189,92507.0,92506.0,0.007]
[1736432703308,0.93476193,92507.0,92506.0,0.007]
[1736432703519,0.93476193,92507.0,92506.0,0.008]
[1736432703934,1.03906169,92507.0,92506.0,0.008]
[1736432704354,1.03906169,92507.0,92490.0,8.52e-05]
[1736432704355,0.366237,92491.0,92490.0,8.52e-05]
[1736432704573,0.366237,92491.0,92483.0,8.52e-05]
[1736432704574,0.366246,92487.0,92483.0,8.52e-05]
[1736432704813,0.15,92486.0,92483.0,8.52e-05]
[1736432704999,0.366253,92484.0,92483.0,8.52e-05]
[1736432705212,0.57485252,92484.0,92483.0,8.52e-05]
[1736432705420,0.366298,92465.0,92462.0,0.0492]
[1736432705660,0.8542001,92465.0,92457.0,8.53e-05]
[1736432705876,0.95849986,92465.0,92457.0,8.53e-05]
[1736432706090,0.95865022,92465.0,92457.0,8.53e-05]
[1736432706308,0.95865022,92465.0,92441.0,0.24090719]
[1736432706309,0.005,92456.0,92425.0,0.21089998]
[1736432706525,0.005,92451.0,92425.0,0.1308]
[1736432706741,0.366389,92426.0,92425.0,0.1308]
[1736432706952,0.366389,92426.0,92425.0,0.04019998]
[1736432707179,0.15,92425.0,92421.0,0.08009998]
[1736432707404,0.2082766,92425.0,92421.0,0.08009998]
[1736432707639,0.216398,92422.0,92421.0,0.08009998]
[1736432708056,0.216398,92422.0,92417.0,0.08009998]
[1736432708057,0.216401,92421.0,92417.0,0.08009998]
[1736432708290,0.216401,92421.0,92420.0,0.07509998]
[1736432708496,0.216401,92421.0,92417.0,0.17009998]
[1736432708721,0.00015025,92422.0,92417.0,0.17009998]
[1736432708937,0.00015025,92422.0,92421.0,0.07509998]
[1736432709350,0.432802,92421.0,92420.0,0.07509998]
[1736432709606,0.432802,92421.0,92420.0,0.07609998]
[1736432709814,0.216401,92421.0,92420.0,0.07609998]
[1736432710309,0.27576489,92421.0,92420.0,0.001]
[1736432710519,0.27576489,92421.0,92420.0,0.009]
[1736432710727,0.216401,92421.0,92420.0,0.001]
[1736432711140,0.216401,92421.0,92420.0,0.006]
[1736432711352,0.216401,92421.0,92420.0,0.008]
[1736432711561,0.216401,92421.0,92420.0,0.002]
[1736432711771,0.216401,92421.0,92420.0,0.005]
[1736432711772,0.8545269,92421.0,92420.0,0.005]
[1736432711973,1.17522766,92421.0,92418.0,0.00974688]
[1736432712179,0.15,92419.0,92418.0,0.00974688]
[1736432712385,0.47070476,92419.0,92418.0,0.00974688]
[1736432712819,0.366405,92419.0,92418.0,0.00974688]
[1736432713459,0.44740919,92419.0,92418.0,0.00974688]
[1736432713662,0.45240919,92419.0,92418.0,0.00974688]
[1736432713887,1.04484565,92419.0,92418.0,0.00974688]
[1736432714099,1.03984565,92419.0,92418.0,0.00974688]
[1736432714302,1.03984565,92419.0,92418.0,1e-08]
[1736432714303,1.63657585,92419.0,92418.0,1e-08]
[1736432715131,1.03984565,92419.0,92418.0,1e-08]
[1736432715391,1.04484565,92419.0,92418.0,1e-08]
[1736432715546,0.366445,92402.0,92401.0,8.51e-05]
[1736432715751,0.8546726,92402.0,92401.0,8.51e-05]
[1736432716395,0.95897236,92402.0,92401.0,8.51e-05]
[1736432716629,0.8546726,92402.0,92401.0,8.51e-05]
[1736432717068,0.216445,92403.0,92401.0,0.07809998]
[1736432717281,0.216445,92403.0,92402.0,0.095]
[1736432717496,0.15,92402.0,92401.0,0.003]
[1736432718354,0.001,92402.0,92401.0,0.17309998]
[1736432718570,0.001,92402.0,92401.0,0.25419998]
[1736432718778,0.216437,92406.0,92401.0,0.25419998]
[1736432719006,0.15,92417.0,92404.0,0.17009998]
[1736432719225,0.216404,92420.0,92414.0,0.07509998]
[1736432719436,0.02490002,92454.0,92418.0,0.07509998]
[1736432719437,0.216401,92421.0,92418.0,0.07509998]
[1736432719686,0.216405,92419.0,92418.0,0.07509998]
[1736432720353,0.36641,92417.0,92416.0,0.07509998]
[1736432720563,0.36641,92417.0,92409.0,0.095]
[1736432720564,0.15,92416.0,92415.0,0.07509998]
[1736432721440,0.216424,92411.0,92410.0,0.07509998]
[1736432722635,0.36641,92417.0,92414.0,0.07509998]
[1736432722847,0.582821,92417.0,92414.0,0.07509998]
[1736432723057,0.582821,92417.0,92415.0,0.007]
[1736432723312,0.01353787,92422.0,92420.0,0.095]
[1736432723574,0.216401,92421.0,92420.0,0.095]
[1736432724036,0.432802,92421.0,92420.0,0.095]
[1736432724784,0.432802,92421.0,92420.0,0.003]
[1736432725267,0.432802,92421.0,92420.0,0.098]
[1736432725516,0.216401,92421.0,92420.0,0.098]
[1736432725736,0.26103399,92421.0,92420.0,0.098]
[1736432726224,0.26103399,92421.0,92420.0,0.095]
[1736432726495,0.26103399,92421.0,92420.0,0.1]
[1736432726737,0.216401,92421.0,92420.0,0.095]
[1736432726985,0.01353787,92422.0,92420.0,0.101]
[1736432727231,0.01353787,92422.0,92421.0,0.07509998]
[1736432727503,0.00015025,92422.0,92421.0,0.41203974]
[1736432727785,0.00015025,92422.0,92421.0,0.40159974]
[1736432728534,0.00015025,92422.0,92421.0,0.42459974]
[1736432729075,0.216328,92452.0,92451.0,0.07509998]
[1736432729314,0.00015058,92452.0,92451.0,0.12389998]
[1736432729736,0.01334956,92452.0,92451.0,0.12389998]
[1736432729945,0.00015058,92452.0,92451.0,0.12389998]
[1736432730371,0.01315875,92452.0,92451.0,0.21998151]
[1736432730616,0.00015058,92452.0,92451.0,0.32319974]
[1736432730850,0.00015058,92452.0,92451.0,0.34619974]
[1736432731094,0.00015058,92452.0,92451.0,0.35419974]
[1736432731320,0.00015058,92452.0,92451.0,0.34719974]
[1736432731533,0.216247,92487.0,92479.0,0.07509998]
[1736432731745,0.432464,92493.0,92481.0,0.07509998]
[1736432731989,0.216234,92493.0,92488.0,0.07509998]
[1736432732838,0.216211,92502.0,92488.0,0.07509998]
[1736432733064,0.216225,92496.0,92488.0,0.07509998]
[1736432733287,0.15,92501.0,92488.0,0.07509998]
[1736432733507,0.216255,92484.0,92483.0,0.07509998]
[1736432733735,0.15,92485.0,92483.0,0.07509998]
[1736432733940,0.15,92485.0,92484.0,0.07509998]
[1736432734159,0.216211,92502.0,92494.0,0.07509998]
[1736432734389,0.00015061,92503.0,92498.0,0.07509998]
[1736432734603,0.00015061,92503.0,92502.0,0.07509998]
[1736432735512,0.01326798,92503.0,92502.0,0.07509998]
[1736432735724,0.15,92498.0,92481.0,0.09608106]
[1736432735948,0.216282,92472.0,92471.0,0.07509998]
[1736432736167,0.432564,92472.0,92470.0,0.07509998]
[1736432736387,0.15,92495.0,92479.0,0.07509998]
[1736432736601,0.15,92480.0,92479.0,0.07509998]
[1736432737033,0.15,92480.0,92479.0,0.06609996]
[1736432737239,0.15015056,92480.0,92479.0,0.06609996]
[1736432737863,0.00015056,92480.0,92479.0,0.06609996]
[1736432738524,0.00015056,92480.0,92479.0,0.06809996]
[1736432738725,0.00015056,92480.0,92479.0,0.27639972]
[1736432739379,0.00015056,92480.0,92479.0,0.35589972]
[1736432740121,0.00015056,92480.0,92479.0,0.25159996]
[1736432741468,0.00015056,92480.0,92479.0,0.15659996]
[1736432741677,0.00015056,92480.0,92479.0,0.0905]
[1736432741888,0.2990337,92480.0,92479.0,0.011]
[1736432742092,0.31773954,92480.0,92479.0,0.011]
[1736432742298,0.216315,92458.0,92449.0,0.0485]
[1736432742514,0.216315,92458.0,92456.0,0.06609996]
[1736432742947,0.216291,92468.0,92455.0,0.095]
[1736432743159,0.15,92479.0,92466.0,0.06609996]
[1736432743792,0.216289,92469.0,92466.0,0.06609996]
[1736432744003,0.15,92467.0,92466.0,0.06609996]
[1736432744625,0.366326,92453.0,92452.0,0.06609996]
[1736432745659,0.10429976,92466.0,92452.0,0.06609996]
[1736432745660,0.216295,92466.0,92452.0,0.06609996]
[1736432745873,0.01311008,92467.0,92452.0,0.06609996]
[1736432745874,0.001,92467.0,92465.0,0.06609996]
[1736432746088,0.366311,92460.0,92459.0,0.06609996]
[1736432746299,0.15,92460.0,92459.0,0.06609996]
[1736432746721,0.01410616,92467.0,92466.0,0.06609996]
[1736432746944,0.01310616,92467.0,92466.0,0.16109996]
[1736432747380,0.216286,92470.0,92469.0,0.16109996]
[1736432747633,0.216286,92470.0,92469.0,0.06609996]
[1736432747634,0.2595424,92470.0,92469.0,0.06609996]
[1736432748257,0.2595424,92470.0,92469.0,0.16109996]
[1736432748471,0.216286,92470.0,92469.0,0.16109996]
[1736432748902,0.216286,92470.0,92469.0,0.16309996]
[1736432749112,0.22905129,92478.0,92476.0,0.06609996]
[1736432749742,0.15,92477.0,92476.0,0.06609996]
[1736432749947,0.20954599,92477.0,92476.0,0.06609996]
[1736432750394,0.01278229,92478.0,92476.0,0.11579996]
[1736432750616,0.216171,92520.0,92477.0,0.16109996]
[1736432750617,0.21623,92494.0,92477.0,0.16109996]
[1736432750826,0.43253,92479.0,92478.0,0.06609996]
[1736432751059,0.58253,92479.0,92478.0,0.06609996]
[1736432751271,0.366265,92479.0,92478.0,0.06609996]
[1736432751505,0.15,92479.0,92478.0,0.06609996]
[1736432751701,0.366265,92479.0,92478.0,0.06609996]
[1736432751913,0.15,92479.0,92478.0,0.06609996]
[1736432752119,0.01308861,92481.0,92479.0,0.15209994]
[1736432753300,0.15,92485.0,92479.0,0.15209994]
[1736432753500,0.15,92485.0,92479.0,0.2563997]
[1736432753702,0.0001704,92515.0,92479.0,0.2563997]
[1736432753703,0.216214,92501.0,92479.0,0.2563997]
[1736432753944,0.01318788,92489.0,92479.0,0.2793997]
[1736432754097,0.01318788,92489.0,92479.0,0.2883997]
[1736432754304,0.01318788,92489.0,92479.0,0.2793997]
[1736432754719,0.01318788,92489.0,92479.0,0.2913997]
[1736432754944,0.15,92496.0,92479.0,0.2913997]
[1736432755151,0.0001704,92516.0,92479.0,0.2913997]
[1736432755152,0.216211,92503.0,92479.0,0.2913997]
[1736432755381,0.15,92498.0,92479.0,0.2913997]
[1736432755589,0.15,92486.0,92479.0,0.2683997]
[1736432755804,0.15,92486.0,92479.0,0.06909994]
[1736432756025,0.432515,92483.0,92479.0,0.16409994]
[1736432756691,0.432515,92483.0,92479.0,0.06909994]
[1736432756890,0.432515,92483.0,92474.0,0.0825]
[1736432756891,0.43253,92479.0,92474.0,0.05709994]
[1736432757113,0.15,92476.0,92470.0,0.05709994]
[1736432757323,0.366284,92471.0,92470.0,0.05709994]
[1736432758605,0.366284,92471.0,92470.0,0.06109994]
[1736432759942,0.366284,92471.0,92470.0,0.05709994]
[1736432760150,0.42460692,92471.0,92470.0,0.05809994]
[1736432760347,0.42460692,92471.0,92470.0,0.06109994]
[1736432760619,0.42460692,92471.0,92470.0,0.06009994]
[1736432760952,0.366284,92471.0,92470.0,0.06009994]
[1736432761161,0.01320487,92480.0,92479.0,0.05709994]
[1736432761582,0.01320487,92480.0,92479.0,0.28269994]
[1736432762379,0.00015056,92480.0,92479.0,0.3869997]
[1736432762610,0.00015056,92480.0,92479.0,0.4099997]
[1736432763019,0.0001704,92514.0,92480.0,0.239262]
[1736432763248,0.216207,92504.0,92498.0,0.095]
[1736432763465,0.216207,92504.0,92481.0,0.1053808]
[1736432763466,0.216199,92508.0,92506.0,0.05709994]
[1736432764114,0.0001704,92514.0,92508.0,0.095]
[1736432764337,0.0021704,92514.0,92513.0,0.05709994]
[1736432764544,0.0021704,92514.0,92513.0,0.2563997]
[1736432764961,0.0001704,92514.0,92513.0,0.2563997]
[1736432765385,0.00032093,92514.0,92513.0,0.2563997]
[1736432765865,0.00032093,92514.0,92513.0,0.2793997]
[1736432766072,0.0001704,92533.0,92515.0,0.05709994]
[1736432766273,0.0001704,92533.0,92515.0,0.2804803]
[1736432766444,0.0001704,92533.0,92515.0,0.3283997]
[1736432766623,0.0001704,92533.0,92515.0,0.4283997]
[1736432767552,0.1501704,92533.0,92515.0,0.3283997]
[1736432767753,0.0011704,92516.0,92515.0,0.3333997]
[1736432767956,0.3673484,92516.0,92515.0,0.005]
[1736432768226,0.44731704,92516.0,92515.0,0.005]
[1736432768523,0.38399029,92516.0,92515.0,0.005]
[1736432768639,0.38399029,92516.0,92515.0,0.06209994]
[1736432769049,0.38399029,92516.0,92515.0,0.005]
[1736432769324,0.38499029,92516.0,92515.0,0.014]
[1736432769703,0.366195,92509.0,92508.0,0.05709994]
[1736432769915,0.366195,92509.0,92503.0,0.144]
[1736432769916,0.15,92508.0,92505.0,0.05709994]
[1736432770115,0.15,92508.0,92503.0,0.00015053]
[1736432770116,0.15,92504.0,92503.0,0.00015053]
[1736432770762,0.74199136,92504.0,92503.0,0.00015053]
[1736432771121,0.74199136,92504.0,92486.0,0.05709994]
[1736432771320,0.15,92502.0,92486.0,0.05760064]
[1736432771554,0.076238,92508.0,92486.0,0.05760064]
[1736432771555,0.366246,92487.0,92486.0,0.05760064]
[1736432771936,0.366246,92487.0,92486.0,0.04860062]
[1736432772955,0.366246,92487.0,92486.0,0.04960062]
[1736432774017,0.368246,92487.0,92486.0,0.04960062]
[1736432774417,0.368246,92487.0,92486.0,0.04860062]
[1736432774627,0.372246,92487.0,92486.0,0.04860062]
[1736432774830,0.39013482,92487.0,92486.0,0.04860062]
[1736432775036,0.01988882,92487.0,92486.0,0.04860062]
[1736432775238,0.216211,92502.0,92501.0,0.04809992]
[1736432775643,0.216207,92504.0,92503.0,0.04809992]
[1736432775852,0.02081978,92516.0,92515.0,0.04809992]
[1736432776062,0.0001704,92516.0,92515.0,0.04809992]
[1736432776282,0.2163504,92516.0,92515.0,0.12469992]
[1736432776882,0.0001704,92516.0,92515.0,0.32399968]
[1736432777106,0.00031138,92516.0,92515.0,0.31499966]
[1736432777319,0.00231138,92516.0,92515.0,0.33799966]
[1736432777754,0.00031138,92516.0,92515.0,0.33799966]
[1736432778797,0.02064138,92536.0,92532.0,0.0390999]
[1736432779003,0.216121,92541.0,92532.0,0.14339966]
[1736432779220,0.2162912,92541.0,92532.0,0.23948022]
[1736432779474,0.2162912,92541.0,92532.0,0.23839966]
[1736432779475,0.01997678,92540.0,92532.0,0.23839966]
[1736432779685,0.0001702,92541.0,92532.0,0.23839966]
[1736432780528,0.0001702,92541.0,92532.0,0.24139966]
[1736432781193,0.0001702,92541.0,92532.0,0.23839966]
[1736432781403,0.0001702,92541.0,92532.0,0.24239966]
[1736432781685,0.0011704,92533.0,92532.0,0.25039966]
[1736432781898,0.0001704,92533.0,92532.0,0.39619966]
[1736432782393,0.0011704,92533.0,92532.0,0.40519966]
[1736432782622,0.0001704,92533.0,92532.0,0.39619966]
[1736432782870,0.0001702,92541.0,92540.0,0.3502219]
[1736432783115,0.0001702,92541.0,92540.0,0.26139966]
[1736432783799,0.0001702,92541.0,92540.0,0.0390999]
[1736432784051,0.0001702,92541.0,92540.0,0.1340999]
[1736432784318,0.0001702,92541.0,92540.0,0.23839966]
[1736432784755,0.0001702,92541.0,92540.0,0.24039966]
[1736432785166,0.0011702,92541.0,92540.0,0.24839966]
[1736432785378,0.0001702,92541.0,92540.0,0.24039966]
[1736432785885,0.0011702,92541.0,92540.0,0.24839966]
[1736432786040,0.0011702,92541.0,92540.0,0.27139966]
[1736432786244,0.0001704,92552.0,92544.0,0.0390999]
[1736432786454,0.0003207,92545.0,92544.0,0.40997986]
[1736432786667,0.0003207,92545.0,92544.0,0.40889966]
[1736432787506,0.0003207,92545.0,92544.0,0.40989966]
[1736432787923,0.0003207,92545.0,92544.0,0.40889966]
[1736432788129,0.0001704,92552.0,92551.0,0.1340999]
[1736432788378,0.0001704,92552.0,92551.0,0.45449666]
[1736432788548,0.0001704,92552.0,92551.0,0.47749666]
[1736432789669,0.0001704,92552.0,92551.0,0.48649666]
[1736432789933,0.0001704,92552.0,92551.0,0.47749666]
[1736432790430,0.0001704,92552.0,92551.0,0.48949666]
[1736432790917,0.0001704,92552.0,92551.0,0.48649666]
[1736432791124,0.0001704,92552.0,92551.0,0.48849666]
[1736432791333,0.0001704,92552.0,92551.0,0.56759666]
[1736432791539,0.0001704,92552.0,92551.0,0.55859666]
[1736432791953,0.0001704,92552.0,92551.0,0.56759666]
[1736432792129,0.0001704,92552.0,92551.0,0.55859666]
[1736432792545,0.0001704,92552.0,92551.0,0.56759666]
[1736432792949,0.0001704,92552.0,92551.0,0.56559666]
[1736432793159,0.0001704,92552.0,92551.0,0.66559666]
[1736432793370,0.0001704,92552.0,92551.0,0.66959666]
[1736432793826,0.0001704,92552.0,92551.0,0.66559666]
[1736432794068,0.02042087,92571.0,92561.0,0.2551729]
[1736432794339,0.0001704,92572.0,92561.0,0.81523266]
[1736432794568,0.0001704,92572.0,92571.0,0.6005499]
[1736432794794,0.0001704,92572.0,92571.0,0.70484966]
[1736432795416,0.0001704,92572.0,92571.0,0.71520966]
[1736432795629,0.0001704,92572.0,92571.0,0.60484966]
[1736432795840,0.0001704,92572.0,92571.0,0.28115966]
[1736432796145,0.0001704,92572.0,92571.0,0.1664999]
[1736432796349,0.0001704,92572.0,92571.0,0.2704999]
[1736432796531,0.0001704,92572.0,92571.0,0.1664999]
[1736432796772,0.0001704,92572.0,92571.0,0.2744999]
[1736432797176,0.0001704,92572.0,92571.0,0.2614999]
[1736432797721,0.0001704,92572.0,92571.0,0.1833999]
[1736432798332,0.0001704,92572.0,92571.0,0.28669966]
[1736432798555,0.0001704,92572.0,92571.0,0.29469966]
[1736432798766,0.0001704,92572.0,92571.0,0.28669966]
[1736432799180,0.0001704,92572.0,92571.0,0.28969966]
[1736432799383,0.0001704,92572.0,92571.0,0.28669966]
[1736432800056,0.0001704,92572.0,92571.0,0.29369966]
[1736432800491,0.0001704,92572.0,92571.0,0.1420999]
[1736432800722,0.0001704,92572.0,92571.0,0.1370999]
[1736432800924,0.0001704,92572.0,92571.0,0.20229976]
[1736432801141,0.0001704,92572.0,92571.0,0.1360999]
[1736432801276,0.0001704,92572.0,92571.0,0.1370999]
[1736432801503,0.0001704,92572.0,92571.0,0.1300999]
[1736432801724,0.0001704,92572.0,92571.0,0.1380999]
[1736432801926,0.0001704,92572.0,92571.0,0.24239966]
[1736432802127,0.0001704,92572.0,92571.0,0.23439966]
[1736432802895,0.0001704,92572.0,92571.0,0.24139966]
[1736432803306,0.0001704,92572.0,92571.0,0.24039966]
[1736432803745,0.0001704,92572.0,92571.0,0.23439966]
[1736432803950,0.0001704,92572.0,92571.0,0.3779151]
[1736432804152,0.0001704,92572.0,92571.0,0.3769151]
[1736432804355,0.0001704,92572.0,92571.0,0.40469966]
[1736432804571,0.0001704,92572.0,92571.0,0.40669966]
[1736432805647,0.0001704,92572.0,92571.0,0.41469966]
[1736432805852,0.0001704,92572.0,92571.0,0.40469966]
[1736432806063,0.0001704,92572.0,92571.0,0.48119966]
[1736432806284,0.0001704,92572.0,92571.0,0.49419966]
[1736432807133,0.0001704,92572.0,92571.0,0.37119966]
[1736432807345,0.0001704,92572.0,92571.0,0.33209976]
[1736432807553,0.0001704,92572.0,92571.0,0.1003999]
[1736432807757,0.0001704,92572.0,92571.0,0.1420999]
[1736432808385,0.0001704,92572.0,92571.0,0.46244966]
[1736432808739,0.0001704,92572.0,92571.0,0.45344966]
[1736432808945,0.0001704,92572.0,92571.0,0.23339966]
[1736432809125,0.0001704,92572.0,92571.0,0.23739966]
[1736432809446,0.0001704,92572.0,92571.0,0.0430999]
[1736432809580,0.0001704,92572.0,92571.0,0.1330999]
[1736432809776,0.0001704,92572.0,92571.0,0.0430999]
[1736432809984,0.0001704,92572.0,92571.0,0.1290999]
[1736432810191,0.0001704,92572.0,92571.0,0.1320999]
[1736432810395,0.0001704,92572.0,92571.0,0.1400999]
[1736432810599,0.0001704,92572.0,92571.0,0.1290999]
[1736432810849,0.0001704,92572.0,92571.0,0.23339966]
[1736432811879,0.0001704,92572.0,92571.0,0.1290999]
[1736432812087,0.0001704,92572.0,92571.0,0.23739966]
[1736432812695,0.0001704,92572.0,92571.0,0.23339966]
[1736432812958,0.0001704,92572.0,92571.0,0.23539966]
[1736432813303,0.0001704,92572.0,92571.0,0.23339966]
[1736432813736,0.0001704,92572.0,92571.0,0.24139966]
[1736432814104,0.0001704,92572.0,92571.0,0.23339966]
[1736432815420,0.0001704,92572.0,92571.0,0.23439966]
[1736432815622,0.2162184,92572.0,92571.0,0.23939966]
[1736432816018,0.2162184,92572.0,92571.0,0.23339966]
[1736432816220,0.0001704,92572.0,92571.0,0.23439966]
[1736432816832,0.0001704,92572.0,92571.0,0.23339966]
[1736432817033,0.0001704,92572.0,92571.0,0.24139966]
[1736432817252,0.2162184,92572.0,92571.0,0.24139966]
[1736432817437,0.2162184,92572.0,92571.0,0.23439966]
[1736432818103,0.0001704,92572.0,92571.0,0.23439966]
[1736432818536,0.0001704,92572.0,92571.0,0.23339966]
[1736432818748,0.0001704,92572.0,92571.0,0.0410999]
[1736432819003,0.3662184,92572.0,92571.0,0.1310999]
[1736432819428,0.3662184,92572.0,92571.0,0.1380999]
[1736432819871,0.3662184,92572.0,92571.0,0.1300999]
[1736432820344,0.0001704,92572.0,92571.0,0.1340999]
[1736432820549,0.0001704,92572.0,92571.0,0.23839966]
[1736432821160,0.0001704,92572.0,92571.0,0.28539966]
[1736432822652,0.0001704,92572.0,92571.0,0.28739966]
[1736432823066,0.0001704,92572.0,92571.0,0.28239966]
[1736432823284,0.0001704,92572.0,92571.0,0.28039966]
[1736432823708,0.0001704,92572.0,92571.0,0.28239966]
[1736432823921,0.5775602,92582.0,92581.0,0.0390999]
[1736432824139,0.15,92575.0,92571.0,0.002]
[1736432824364,0.366048,92572.0,92571.0,0.002]
[1736432824589,0.47034776,92572.0,92571.0,0.011]
[1736432824789,0.59163366,92572.0,92562.0,0.0962363]
[1736432824997,0.366069,92563.0,92562.0,0.0962363]
[1736432825213,0.366069,92563.0,92562.0,0.1353362]
[1736432825420,0.366069,92563.0,92562.0,0.0390999]
[1736432826521,0.21608,92558.0,92557.0,0.1290999]
[1736432826731,0.36608,92558.0,92557.0,0.1290999]
[1736432826939,0.36608,92558.0,92557.0,0.12009988]
[1736432828006,0.36608,92558.0,92557.0,0.12109988]
[1736432828474,0.36608,92558.0,92557.0,0.001]
[1736432828684,0.55380533,92558.0,92557.0,0.001]
[1736432828937,0.55380533,92558.0,92536.0,0.14435446]
[1736432828938,0.15,92539.0,92536.0,0.14435446]
[1736432829201,0.15,92537.0,92536.0,0.14435446]
[1736432829883,0.216132,92536.0,92535.0,0.0390999]
[1736432830095,0.216132,92536.0,92533.0,8.51e-05]
[1736432830344,0.366136,92534.0,92533.0,8.51e-05]
[1736432830554,0.366136,92534.0,92533.0,0.0002356]
[1736432831623,0.95797266,92534.0,92533.0,0.0002356]
[1736432832290,0.366136,92534.0,92533.0,0.0002356]
[1736432833160,0.370136,92534.0,92533.0,0.0002356]
[1736432833397,0.371136,92534.0,92533.0,0.0002356]
[1736432833643,0.47443576,92534.0,92533.0,0.0002356]
[1736432834163,0.370136,92534.0,92533.0,0.0002356]
[1736432834618,0.371136,92534.0,92533.0,0.0002356]
[1736432834877,0.366136,92534.0,92533.0,0.0002356]
[1736432835113,0.367136,92534.0,92533.0,0.0002356]
[1736432835366,0.221136,92534.0,92533.0,0.12033548]
[1736432835879,0.217136,92534.0,92533.0,0.12033548]
[1736432836151,0.003,92534.0,92533.0,0.22463524]
[1736432836414,0.002,92534.0,92533.0,0.22463524]
[1736432836686,0.0252175,92544.0,92543.0,0.08099998]
[1736432836935,0.216107,92547.0,92543.0,0.08099998]
[1736432837186,0.216107,92547.0,92546.0,0.07199996]
[1736432837929,0.216107,92547.0,92546.0,0.11109986]
[1736432838352,0.366107,92547.0,92546.0,0.11109986]
[1736432839484,0.09639995,92586.0,92563.0,0.0390999]
[1736432839699,0.216066,92564.0,92563.0,0.0390999]
[1736432839911,0.216048,92572.0,92569.0,0.0390999]
[1736432840343,0.15,92571.0,92569.0,0.0390999]
[1736432840590,0.366052,92570.0,92569.0,0.0390999]
[1736432841410,0.366052,92570.0,92569.0,0.0420999]
[1736432842596,0.366052,92570.0,92569.0,0.0390999]
[1736432842880,0.3890563,92570.0,92569.0,0.0430999]